bitfinex/quotes_SOLUSD_20220118
["timestamp","ask_amount","ask_price","bid_price","bid_amount"]
[1642472165170,10.9497,140.23,140.16,2.852]
[1642472165570,44.55867009,140.22,140.16,49.04705126]
[1642472165770,3.103,140.21,140.16,46.19505126]
[1642472166069,0.25,140.21,140.16,46.19505126]
[1642472167271,10.7024,140.2,140.16,46.19505126]
[1642472168273,0.25,140.21,140.16,46.19505126]
[1642472168674,12.7363588,140.22,140.16,46.19505126]
[1642472168875,2.2953588,140.22,140.17,3.103]
[1642472169274,2.2953588,140.22,140.17,2.853]
[1642472169474,0.26,140.22,140.17,2.853]
[1642472169875,0.25,140.22,140.17,2.853]
[1642472170076,2.2953588,140.23,140.17,2.853]
[1642472171277,0.25,140.22,140.17,2.853]
[1642472172580,0.25,140.22,140.16,49.30805126]
[1642472173282,10.9597,140.23,140.16,49.30805126]
[1642472173683,0.25,140.22,140.16,49.30805126]
[1642472176586,2.2953588,140.23,140.16,49.30805126]
[1642472176790,0.26,140.23,140.17,0.25]
[1642472177192,12.7341588,140.24,140.17,0.25]
[1642472177890,0.25,140.23,140.17,0.25]
[1642472178190,10.9495,140.23,140.17,0.25]
[1642472178491,42.29889038,140.22,140.17,0.25]
[1642472179891,10.9495,140.23,140.17,0.25]
[1642472180092,0.25,140.23,140.17,0.25]
[1642472180690,2.2853588,140.23,140.17,0.25]
[1642472180891,2.0353588,140.23,140.17,0.25]
[1642472183795,2.0353588,140.23,140.18,2.853]
[1642472183994,2.0353588,140.23,140.19,43.75727918]
[1642472184195,2.0353588,140.23,140.19,44.00727918]
[1642472184394,2.0353588,140.24,140.19,44.00727918]
[1642472184796,2.2953588,140.24,140.19,44.00727918]
[1642472185196,0.26,140.24,140.19,44.00727918]
[1642472185397,61.58850441,140.25,140.19,44.00727918]
[1642472185596,61.84850441,140.25,140.19,44.00727918]
[1642472186598,51.14980441,140.25,140.19,44.00727918]
[1642472187000,51.14980441,140.25,140.19,43.75727918]
[1642472187798,0.25,140.24,140.19,43.75727918]
[1642472188399,2.0353588,140.25,140.19,43.75727918]
[1642472188599,2.0353588,140.25,140.2,10.48]
[1642472188812,2.0353588,140.25,140.21,2.852]
[1642472188999,2.0353588,140.25,140.21,13.082]
[1642472189200,2.0353588,140.25,140.22,41.98027178]
[1642472189399,2.0353588,140.25,140.22,42.49027178]
[1642472189600,2.0353588,140.27,140.23,10.23]
[1642472189803,8.0353588,140.27,140.23,10.49]
[1642472190034,2.0353588,140.27,140.23,10.49]
[1642472190234,8.0353588,140.27,140.23,10.49]
[1642472190636,6.0,140.27,140.23,10.49]
[1642472190834,8.0353588,140.28,140.23,10.49]
[1642472192738,8.2953588,140.28,140.23,10.49]
[1642472193037,2.2953588,140.28,140.23,10.49]
[1642472194139,2.2953588,140.28,140.23,16.49]
[1642472194340,2.0353588,140.28,140.23,10.49]
[1642472194842,2.0353588,140.28,140.24,0.25]
[1642472195039,2.0353588,140.28,140.25,10.23]
[1642472195739,2.0353588,140.28,140.25,47.77873993]
[1642472196141,2.0353588,140.29,140.25,47.77873993]
[1642472197143,2.2953588,140.29,140.25,47.77873993]
[1642472197643,0.26,140.29,140.25,47.77873993]
[1642472197844,3.64904891,140.3,140.25,47.77873993]
[1642472198042,3.90904891,140.3,140.25,47.77873993]
[1642472200446,2.0353588,140.29,140.25,47.77873993]
[1642472200845,8.0353588,140.29,140.25,47.77873993]
[1642472201050,2.0353588,140.29,140.25,47.77873993]
[1642472201848,2.0353588,140.29,140.25,10.23]
[1642472202850,37.02057121,140.28,140.25,10.23]
[1642472203148,6.06439994,140.27,140.25,10.23]
[1642472203552,6.06439994,140.27,140.21,2.851]
[1642472203749,3.03219997,140.27,140.21,2.851]
[1642472203952,47.71677121,140.28,140.21,2.851]
[1642472204152,47.71677121,140.28,140.22,0.25]
[1642472204352,47.97677121,140.28,140.22,0.25]
[1642472205055,37.28057121,140.28,140.22,0.25]
[1642472208358,39.31593001,140.28,140.22,0.25]
[1642472209386,39.31593001,140.28,140.22,47.37704516]
[1642472210089,2.0353588,140.27,140.22,47.37704516]
[1642472210292,2.0353588,140.27,140.22,0.25]
[1642472210787,2.0353588,140.27,140.21,2.851]
[1642472210986,2.0353588,140.27,140.21,13.081]
[1642472211292,3.102,140.26,140.18,1.95393007]
[1642472211486,71.08,140.25,140.18,1.95393007]
[1642472211692,2.852,140.24,140.18,1.95393007]
[1642472211887,4.8869091,140.24,140.18,1.95393007]
[1642472212087,18.9339091,140.24,140.18,1.95393007]
[1642472212287,36.27935379,140.23,140.18,1.95393007]
[1642472212493,2.852,140.22,140.18,1.95393007]
[1642472212694,3.102,140.22,140.18,1.95393007]
[1642472212889,3.102,140.22,140.16,38.61609858]
[1642472212890,5.1373588,140.22,140.16,38.61609858]
[1642472213389,5.3973588,140.22,140.16,38.61609858]
[1642472213588,16.0976588,140.22,140.16,38.61609858]
[1642472214190,22.0976588,140.22,140.16,38.61609858]
[1642472214889,9.362,140.22,140.16,38.61609858]
[1642472215090,6.26,140.22,140.16,48.84609858]
[1642472215291,0.26,140.22,140.16,49.10609858]
[1642472215498,6.26,140.22,140.16,49.10609858]
[1642472216092,0.26,140.22,140.16,49.10609858]
[1642472216292,6.25,140.22,140.16,49.10609858]
[1642472216791,0.25,140.22,140.16,49.10609858]
[1642472216990,44.5797588,140.24,140.16,49.10609858]
[1642472217191,41.7267588,140.24,140.17,0.25]
[1642472218298,0.25,140.23,140.16,51.06002865]
[1642472218495,0.25,140.23,140.17,3.103]
[1642472219294,18.7348588,140.24,140.17,3.103]
[1642472219494,8.0353588,140.24,140.17,3.363]
[1642472219696,2.0353588,140.24,140.19,44.33947028]
[1642472219894,2.0353588,140.24,140.2,0.25]
[1642472220194,2.0353588,140.24,140.19,44.59947028]
[1642472220696,2.2953588,140.24,140.19,44.59947028]
[1642472220994,2.2953588,140.24,140.2,0.25]
[1642472221194,0.26,140.24,140.2,3.102]
[1642472221395,25.4825588,140.26,140.2,3.102]
[1642472221995,23.4472,140.26,140.2,3.102]
[1642472222197,12.7320588,140.27,140.2,3.102]
[1642472222596,2.0353588,140.27,140.2,3.102]
[1642472222796,2.0353588,140.27,140.21,10.23]
[1642472222996,2.0353588,140.27,140.22,2.852]
[1642472223301,2.0353588,140.27,140.22,13.592]
[1642472223597,2.0353588,140.27,140.23,40.35749847]
[1642472223796,2.0353588,140.27,140.24,3.102]
[1642472223998,2.0353588,140.28,140.24,3.102]
[1642472225099,3.64904891,140.3,140.24,13.592]
[1642472225598,3.90904891,140.3,140.24,13.592]
[1642472225999,1.87369011,140.3,140.24,13.592]
[1642472226600,1.61369011,140.3,140.24,13.592]
[1642472227201,1.61369011,140.3,140.24,10.49]
[1642472227401,1.61369011,140.3,140.25,0.25]
[1642472227802,1.87369011,140.3,140.25,0.25]
[1642472228405,2.0353588,140.31,140.25,10.9412]
[1642472228603,2.0353588,140.31,140.26,13.081]
[1642472228805,2.0353588,140.31,140.27,0.25]
[1642472229208,2.0353588,140.31,140.27,37.06414488]
[1642472229405,2.0353588,140.31,140.27,37.32414488]
[1642472229608,2.0353588,140.33,140.27,37.32414488]
[1642472230908,0.25,140.32,140.27,37.32414488]
[1642472231706,0.25,140.32,140.27,47.55414488]
[1642472233209,2.0353588,140.33,140.27,47.55414488]
[1642472233410,0.25,140.32,140.27,47.55414488]
[1642472234815,2.0353588,140.33,140.27,47.55414488]
[1642472235054,50.39587384,140.34,140.27,47.55414488]
[1642472235055,2.0353588,140.32,140.27,47.55414488]
[1642472235715,2.0353588,140.33,140.27,47.55414488]
[1642472235915,2.2853588,140.33,140.27,47.55414488]
[1642472236516,2.0353588,140.32,140.27,47.55414488]
[1642472237015,2.2953588,140.32,140.27,47.55414488]
[1642472239318,2.0353588,140.32,140.27,58.24394488]
[1642472239720,2.0353588,140.33,140.27,58.24394488]
[1642472240117,2.0353588,140.33,140.27,135.32394488]
[1642472240918,2.0353588,140.34,140.27,135.32394488]
[1642472242223,2.0353588,140.34,140.28,13.5388]
[1642472242421,2.0353588,140.34,140.3,49.47693608]
[1642472242822,2.0353588,140.34,140.3,49.73693608]
[1642472247927,2.0353588,140.34,140.3,52.58693608]
[1642472250053,2.0353588,140.34,140.3,63.27463608]
[1642472250454,2.0353588,140.34,140.31,0.25]
[1642472250656,2.0353588,140.35,140.31,10.48]
[1642472250855,6.92186851,140.38,140.31,16.74]
[1642472251056,6.92186851,140.38,140.33,58.30289785]
[1642472251256,6.92186851,140.38,140.34,84.409]
[1642472251469,4.07186851,140.38,140.34,84.409]
[1642472251657,5.84246266,140.41,140.34,90.669]
[1642472251658,4.07186851,140.41,140.34,90.669]
[1642472252657,4.07186851,140.41,140.36,41.57119521]
[1642472252858,9.91433117,140.44,140.37,13.329]
[1642472253058,8.13847133,140.44,140.37,13.329]
[1642472253258,8.13847133,140.44,140.37,19.079]
[1642472253459,2.848,140.43,140.37,10.23]
[1642472253858,13.5325,140.43,140.37,10.23]
[1642472254259,0.25,140.42,140.37,10.23]
[1642472254461,40.18136519,140.41,140.37,10.23]
[1642472254658,39.68136519,140.41,140.37,10.23]
[1642472254858,0.25,140.4,140.37,10.23]
[1642472255060,2.849,140.39,140.37,10.23]
[1642472255258,0.25,140.38,140.37,10.23]
[1642472255658,6.31439994,140.38,140.37,10.23]
[1642472255860,50.07003323,140.38,140.37,10.23]
[1642472256661,50.33003323,140.38,140.37,10.23]
[1642472256859,50.33003323,140.38,140.31,2.849]
[1642472257061,2.85,140.37,140.34,10.23]
[1642472257263,0.25,140.36,140.34,10.23]
[1642472258262,2.85,140.37,140.34,10.23]
[1642472258463,49.82003323,140.38,140.34,10.23]
[1642472258663,60.50833323,140.38,140.34,10.23]
[1642472259865,60.76833323,140.38,140.34,10.23]
[1642472262070,10.6904,140.36,140.31,2.849]
[1642472262268,10.6904,140.36,140.3,10.23]
[1642472262269,0.25,140.35,140.3,10.23]
[1642472263271,2.85,140.36,140.31,0.25]
[1642472263471,1.32283339,140.37,140.32,13.08]
[1642472263671,1.32283339,140.37,140.33,35.39396116]
[1642472265575,1.32283339,140.37,140.33,41.39396116]
[1642472265874,1.32283339,140.37,140.33,35.39396116]
[1642472266075,1.58283339,140.37,140.33,35.39396116]
[1642472268576,1.58283339,140.37,140.32,13.08]
[1642472268807,1.58283339,140.37,140.32,10.49]
[1642472269379,1.58283339,140.37,140.32,45.46675594]
[1642472269777,1.58283339,140.37,140.32,45.20675594]
[1642472273283,1.58283339,140.37,140.32,48.05675594]
[1642472273780,1.58283339,140.37,140.32,13.08]
[1642472277084,26.6675,140.39,140.32,24.0261]
[1642472277287,23.8175,140.39,140.33,0.25]
[1642472277485,23.8175,140.39,140.34,10.23]
[1642472277984,23.8175,140.39,140.34,52.05096193]
[1642472278389,54.81043323,140.4,140.34,52.05096193]
[1642472278583,0.25,140.39,140.34,52.05096193]
[1642472280287,0.25,140.39,140.34,58.05096193]
[1642472280888,0.25,140.39,140.34,52.31096193]
[1642472281392,0.25,140.39,140.34,16.23]
[1642472281593,0.25,140.39,140.34,10.23]
[1642472282193,0.25,140.39,140.34,16.23]
[1642472282601,0.25,140.39,140.34,10.23]
[1642472283818,71.08,140.38,140.31,2.849]
[1642472284018,73.929,140.38,140.3,10.23]
[1642472284219,0.25,140.37,140.3,10.23]
[1642472284419,2.85,140.36,140.3,10.23]
[1642472284619,36.99938847,140.35,140.3,10.23]
[1642472284819,2.85,140.36,140.3,10.23]
[1642472285021,3.1,140.37,140.3,10.23]
[1642472285220,0.25,140.35,140.3,10.23]
[1642472285420,3.1,140.37,140.3,10.23]
[1642472285822,3.1,140.37,140.31,49.03054407]
[1642472286318,13.7889,140.37,140.3,10.23]
[1642472286720,71.08,140.36,140.3,10.23]
[1642472286920,2.85,140.35,140.29,2.85]
[1642472287120,38.0,140.34,140.23,14.17582665]
[1642472287420,10.6964,140.3,140.23,62.78956342]
[1642472287624,2.851,140.29,140.23,58.84373677]
[1642472287820,3.101,140.29,140.23,58.84373677]
[1642472288620,13.7966,140.29,140.23,58.84373677]
[1642472289821,13.7966,140.29,140.23,64.84373677]
[1642472290723,13.7966,140.29,140.23,58.84373677]
[1642472291324,14.0566,140.29,140.23,58.84373677]
[1642472295636,13.8066,140.29,140.23,58.84373677]
[1642472295837,2.851,140.29,140.23,58.84373677]
[1642472296038,10.6941,140.31,140.24,0.25]
[1642472296238,10.6941,140.31,140.26,37.50469297]
[1642472297339,0.25,140.3,140.26,37.50469297]
[1642472299841,10.9444,140.3,140.26,37.50469297]
[1642472300042,10.9444,140.3,140.25,10.23]
[1642472300242,2.851,140.29,140.25,10.23]
[1642472300649,0.25,140.28,140.25,10.23]
[1642472301044,6.06439994,140.27,140.25,10.23]
[1642472301243,0.25,140.26,140.25,10.23]
[1642472305476,13.545,140.31,140.25,10.23]
[1642472305673,0.26,140.28,140.25,10.48]
[1642472305875,0.25,140.3,140.26,48.56729056]
[1642472306074,0.26,140.31,140.26,48.56729056]
[1642472306273,3.111,140.32,140.26,48.56729056]
[1642472306673,13.8037,140.32,140.26,48.56729056]
[1642472307573,0.25,140.31,140.26,48.56729056]
[1642472310184,13.5437,140.32,140.26,48.56729056]
[1642472310388,4.45095147,140.33,140.27,10.23]
[1642472310586,2.851,140.34,140.27,10.48]
[1642472310783,27.53496851,140.35,140.27,10.74]
[1642472310983,4.07186851,140.36,140.27,35.0384]
[1642472311189,38.91215193,140.36,140.27,35.0384]
[1642472311584,49.60245193,140.36,140.27,34.5284]
[1642472311887,71.33,140.35,140.27,10.23]
[1642472312084,2.85,140.34,140.27,10.23]
[1642472312283,0.25,140.33,140.25,2.851]
[1642472312484,2.851,140.32,140.25,2.851]
[1642472312684,2.851,140.32,140.23,14.17582665]
[1642472312883,38.21532357,140.31,140.24,40.65910072]
[1642472313087,13.5464,140.3,140.24,40.65910072]
[1642472313287,0.25,140.29,140.24,40.65910072]
[1642472314387,3.111,140.3,140.25,10.48]
[1642472314590,0.26,140.3,140.25,13.081]
[1642472314788,0.25,140.31,140.25,13.081]
[1642472314987,0.25,140.31,140.25,10.23]
[1642472315789,10.9436,140.31,140.25,10.23]
[1642472315991,2.851,140.3,140.25,10.23]
[1642472316195,42.49293255,140.3,140.25,10.23]
[1642472316493,3.101,140.3,140.25,10.23]
[1642472316692,13.7954,140.3,140.25,10.23]
[1642472317495,14.0554,140.3,140.25,10.23]
[1642472317894,0.51,140.3,140.25,10.23]
[1642472318295,0.25,140.31,140.25,10.23]
[1642472319596,0.25,140.31,140.25,13.081]
[1642472321828,10.9435,140.31,140.25,13.081]
[1642472322832,2.851,140.3,140.25,10.23]
[1642472323235,0.25,140.29,140.25,10.23]
[1642472324039,2.851,140.3,140.25,10.23]
[1642472324236,10.6935,140.31,140.25,13.081]
[1642472324436,47.76989641,140.32,140.25,13.081]
[1642472324837,0.25,140.31,140.25,13.081]
[1642472325640,54.02989641,140.32,140.25,13.081]
[1642472325840,64.72279641,140.32,140.25,13.081]
[1642472326840,3.101,140.31,140.25,13.081]
[1642472327040,13.7944,140.31,140.25,13.081]
[1642472327241,19.7944,140.31,140.25,13.081]
[1642472328342,16.9434,140.31,140.25,10.23]
[1642472329544,19.7944,140.31,140.25,10.23]
[1642472332344,13.7944,140.31,140.25,10.23]
[1642472332744,14.0544,140.31,140.25,10.23]
[1642472332947,14.0544,140.31,140.26,39.65493677]
[1642472334447,11.2034,140.31,140.26,39.65493677]
[1642472335648,0.51,140.31,140.26,52.73593677]
[1642472335849,0.25,140.32,140.26,52.99593677]
[1642472336051,10.6924,140.33,140.26,52.99593677]
[1642472336450,10.9524,140.33,140.26,52.99593677]
[1642472337253,0.25,140.32,140.26,52.99593677]
[1642472337651,0.25,140.32,140.27,0.25]
[1642472337851,0.25,140.32,140.28,2.851]
[1642472338051,0.25,140.32,140.29,37.55231853]
[1642472340381,13.5421,140.35,140.29,37.55231853]
[1642472341784,10.9415,140.34,140.29,37.55231853]
[1642472341993,2.85,140.33,140.29,37.55231853]
[1642472342284,0.25,140.32,140.29,37.55231853]
[1642472345293,0.25,140.33,140.29,37.55231853]
[1642472345894,10.942,140.33,140.29,37.55231853]
[1642472346593,10.942,140.33,140.27,2.85]
[1642472346792,10.942,140.33,140.27,13.08]
[1642472347094,10.6941,140.31,140.27,13.08]
[1642472347292,3.101,140.3,140.27,13.08]
[1642472347493,0.25,140.3,140.27,13.08]
[1642472347696,2.851,140.29,140.27,13.08]
[1642472347894,0.25,140.28,140.27,13.08]
[1642472349895,6.31439994,140.28,140.27,10.23]
[1642472350198,6.31439994,140.28,140.24,10.23]
[1642472351196,6.57439994,140.28,140.24,10.23]
[1642472358706,6.06439994,140.28,140.24,10.23]
[1642472358905,6.06439994,140.28,140.25,0.25]
[1642472359104,10.46404878,140.33,140.26,10.23]
[1642472359305,7.61304878,140.33,140.27,3.101]
[1642472359504,7.61304878,140.33,140.28,10.23]
[1642472359505,0.25,140.32,140.28,10.23]
[1642472360108,0.25,140.32,140.29,41.12048257]
[1642472360405,0.25,140.32,140.28,10.23]
[1642472361204,0.25,140.32,140.28,53.83221126]
[1642472363910,1.87304878,140.33,140.28,53.83221126]
[1642472364208,2.851,140.36,140.29,3.101]
[1642472364510,6.92186851,140.37,140.3,10.23]
[1642472364709,6.0,140.36,140.31,2.85]
[1642472364908,2.85,140.37,140.32,44.45761957]
[1642472365108,8.85,140.37,140.32,44.45761957]
[1642472365311,0.25,140.36,140.32,44.45761957]
[1642472365509,6.0,140.37,140.32,44.45761957]
[1642472365912,58.4028281,140.38,140.32,44.45761957]
[1642472366110,58.6628281,140.38,140.32,44.45761957]
[1642472366711,58.4028281,140.38,140.32,44.45761957]
[1642472367411,58.4028281,140.38,140.31,34.7593]
[1642472367611,69.0909281,140.38,140.31,34.7593]
[1642472368013,0.25,140.37,140.31,34.7593]
[1642472368417,0.25,140.37,140.31,69.73260165]
[1642472370819,0.25,140.37,140.31,34.7593]
[1642472371019,2.27322442,140.37,140.31,34.7593]
[1642472371419,18.96232442,140.37,140.31,34.7593]
[1642472372218,21.81232442,140.37,140.31,34.7593]
[1642472373019,2.02322442,140.36,140.31,34.7593]
[1642472373420,8.02322442,140.36,140.31,34.7593]
[1642472373622,6.0,140.36,140.31,34.7593]
[1642472374120,19.7891,140.37,140.31,34.7593]
[1642472374319,16.9391,140.37,140.31,34.7593]
[1642472374521,17.1991,140.37,140.31,34.7593]
[1642472375320,2.85,140.36,140.31,34.7593]
[1642472375520,71.08,140.34,140.27,15.11294412]
[1642472375721,42.38990265,140.33,140.27,15.11294412]
[1642472375921,42.63990265,140.33,140.27,12.26294412]
[1642472376325,48.63990265,140.33,140.27,12.26294412]
[1642472376525,10.6941,140.32,140.27,12.26294412]
[1642472376724,2.851,140.31,140.27,12.26294412]
[1642472376921,3.101,140.31,140.27,10.23]
[1642472378022,0.25,140.31,140.27,10.23]
[1642472378825,0.25,140.31,140.27,16.23]
[1642472379226,13.8038,140.32,140.28,46.00376201]
[1642472379423,0.26,140.32,140.28,46.00376201]
[1642472379823,0.25,140.32,140.28,46.00376201]
[1642472380127,0.26,140.33,140.28,46.00376201]
[1642472380325,2.02322442,140.34,140.29,3.1]
[1642472380526,2.28322442,140.34,140.29,3.1]
[1642472380724,2.02322442,140.34,140.29,3.1]
[1642472380927,2.02322442,140.35,140.29,3.36]
[1642472381928,0.26,140.35,140.29,3.36]
[1642472382327,0.25,140.35,140.29,3.36]
[1642472382528,10.9404,140.35,140.29,13.59]
[1642472382729,10.9404,140.35,140.29,13.34]
[1642472383329,10.6904,140.35,140.29,13.34]
[1642472383733,8.02322442,140.36,140.29,13.34]
[1642472384229,8.02322442,140.36,140.3,0.25]
[1642472384634,8.02322442,140.36,140.29,13.34]
[1642472385731,0.25,140.35,140.29,13.34]
[1642472386136,41.18390432,140.35,140.29,13.34]
[1642472387133,41.44390432,140.35,140.29,13.34]
[1642472387332,41.44390432,140.35,140.29,13.08]
[1642472387532,52.13440432,140.35,140.29,13.08]
[1642472387732,54.15762874,140.35,140.29,13.08]
[1642472388436,60.15762874,140.35,140.29,13.08]
[1642472388635,10.6935,140.33,140.29,13.08]
[1642472388862,3.1,140.32,140.29,13.08]
[1642472389037,6.06439994,140.31,140.29,2.85]
[1642472389233,3.101,140.3,140.29,2.85]
[1642472389436,42.21870016,140.3,140.26,2.03294412]
[1642472389833,39.36770016,140.3,140.26,2.03294412]
[1642472390034,50.06340016,140.3,140.25,33.5764]
[1642472390736,50.32340016,140.3,140.25,33.5764]
[1642472393438,56.32340016,140.3,140.25,33.5764]
[1642472393640,50.32340016,140.3,140.25,33.5764]
[1642472394540,56.32340016,140.3,140.25,33.5764]
[1642472394740,50.32340016,140.3,140.25,33.5764]
[1642472395842,56.32340016,140.3,140.25,33.5764]
[1642472396042,50.32340016,140.3,140.25,33.5764]
[1642472396772,11.2057,140.3,140.25,33.5764]
[1642472398672,2.851,140.31,140.25,33.5764]
[1642472398875,2.851,140.31,140.26,0.25]
[1642472398876,6.0,140.31,140.26,0.25]
[1642472399072,6.0,140.31,140.27,2.851]
[1642472399274,6.0,140.31,140.27,3.111]
[1642472399476,9.48725744,140.32,140.28,43.66318953]
[1642472399672,9.48725744,140.32,140.28,53.89318953]
[1642472399872,3.48725744,140.32,140.28,53.89318953]
[1642472400774,1.46403302,140.32,140.29,0.25]
[1642472402877,1.46403302,140.32,140.29,10.9386]
[1642472403278,1.46403302,140.32,140.29,11.1986]
[1642472404178,1.46403302,140.32,140.29,21.4286]
[1642472405182,1.46403302,140.32,140.29,24.2786]
[1642472410486,1.46403302,140.32,140.29,23.7786]
[1642472411387,1.46403302,140.32,140.29,13.34]
[1642472413690,1.46403302,140.32,140.29,13.08]
[1642472413903,3.03219997,140.31,140.29,10.23]
[1642472414091,3.03219997,140.3,140.27,2.03294412]
[1642472414496,3.28219997,140.31,140.27,8.03294412]
[1642472414694,0.25,140.31,140.25,35.60934412]
[1642472414895,0.25,140.31,140.25,12.26294412]
[1642472415493,10.9434,140.31,140.25,12.26294412]
[1642472415795,10.9434,140.31,140.25,10.23]
[1642472417297,11.2034,140.31,140.25,10.23]
[1642472417796,2.851,140.3,140.25,10.23]
[1642472417996,10.697,140.29,140.24,2.03294412]
[1642472418197,2.851,140.28,140.24,2.03294412]
[1642472418397,0.25,140.27,140.23,2.851]
[1642472419098,10.9468,140.27,140.23,2.851]
[1642472420800,10.9468,140.27,140.22,37.09785082]
[1642472421200,11.2068,140.27,140.22,37.09785082]
[1642472421804,11.2068,140.27,140.22,35.0649067]
[1642472422502,11.2068,140.27,140.22,34.5649067]
[1642472423302,59.36779196,140.27,140.22,34.5649067]
[1642472423502,11.2068,140.27,140.22,34.5649067]
[1642472428010,10.9468,140.27,140.22,34.5649067]
[1642472428208,71.08,140.26,140.21,2.03294412]
[1642472428410,73.932,140.26,140.21,2.03294412]
[1642472428610,82.0301,140.25,140.21,2.03294412]
[1642472428810,2.852,140.24,140.21,2.03294412]
[1642472429016,2.852,140.24,140.2,2.852]
[1642472429315,6.31439994,140.23,140.2,2.852]
[1642472429515,2.852,140.22,140.19,38.06499447]
[1642472429716,9.16639994,140.23,140.19,38.06499447]
[1642472430016,0.25,140.21,140.19,36.03205035]
[1642472430235,3.102,140.23,140.19,36.03205035]
[1642472430633,13.8024,140.23,140.19,36.03205035]
[1642472431534,10.9504,140.23,140.19,36.03205035]
[1642472432842,0.25,140.23,140.19,36.03205035]
[1642472433244,0.25,140.23,140.17,10.23]
[1642472434544,10.9497,140.23,140.17,10.23]
[1642472435244,48.38208826,140.22,140.17,10.23]
[1642472435645,0.25,140.21,140.17,10.23]
[1642472436044,0.25,140.21,140.16,2.03294412]
[1642472436245,2.853,140.2,140.16,2.03294412]
[1642472436445,10.669,140.2,140.16,2.03294412]
[1642472436645,0.25,140.19,140.16,2.03294412]
[1642472436846,2.853,140.18,140.16,2.03294412]
[1642472437045,10.7045,140.17,140.16,2.03294412]
[1642472437244,10.9545,140.17,140.16,2.03294412]
[1642472437644,16.9545,140.17,140.16,2.03294412]
[1642472437845,28.60789994,140.17,140.08,403.79470511]
[1642472438148,10.7083,140.14,140.08,14.17582665]
[1642472438346,3.104,140.13,140.08,14.17582665]
[1642472438747,3.364,140.13,140.09,35.31098028]
[1642472439650,10.7084,140.12,140.09,35.31098028]
[1642472439847,0.25,140.11,140.09,35.31098028]
[1642472440046,6.31439994,140.11,140.09,35.31098028]
[1642472440850,6.31439994,140.11,140.06,10.23]
[1642472441049,17.02339994,140.11,140.06,10.23]
[1642472441649,16.77339994,140.11,140.06,10.23]
[1642472442750,16.77339994,140.11,140.07,34.90706382]
[1642472445152,17.03339994,140.11,140.07,34.90706382]
[1642472446057,10.9595,140.1,140.06,10.23]
[1642472447156,10.7087,140.12,140.06,10.23]
[1642472447357,0.25,140.11,140.06,10.23]
[1642472447958,2.854,140.13,140.06,10.23]
[1642472448158,8.854,140.13,140.07,46.78308334]
[1642472448362,10.709,140.11,140.07,46.78308334]
[1642472449485,19.5619,140.13,140.07,46.78308334]
[1642472449884,0.25,140.12,140.07,46.78308334]
[1642472451088,2.855,140.11,140.07,46.78308334]
[1642472451286,0.25,140.1,140.07,46.78308334]
[1642472451490,6.06439994,140.09,140.07,46.78308334]
[1642472452589,0.25,140.1,140.07,46.78308334]
[1642472452790,0.25,140.11,140.07,46.78308334]
[1642472453192,0.25,140.11,140.06,10.23]
[1642472453494,2.855,140.1,140.06,10.23]
[1642472453890,0.25,140.09,140.06,10.23]
[1642472454090,6.06439994,140.08,140.06,10.23]
[1642472454792,6.32439994,140.08,140.06,10.23]
[1642472465901,0.26,140.08,140.06,10.23]
[1642472466099,0.25,140.09,140.06,10.23]
[1642472469600,6.06439994,140.08,140.06,10.23]
[1642472470605,2.855,140.11,140.06,10.23]
[1642472470903,2.855,140.15,140.07,4.63432063]
[1642472471102,1.50636445,140.16,140.08,23.7395]
[1642472471305,7.50636445,140.16,140.09,3.104]